Cogmind - Beta 16 @@@ ROGUE MODE // 2025.11.10 @ 16:59:38 Player: opdo Result: Destroyed by G-34 Mercenary with Small Laser Performance ------------- Evolutions (0) 0 Regions Visited (2) 400 Robots Destroyed (23) 115 Value Destroyed (432) 432 Prototype IDs (0) 0 Alien Tech Used (0) 0 Bonus (0) 0 TOTAL SCORE: 947 Bonus ------- None Cogmind --------- Core Integrity 0/250 Matter 285/300 Energy 250/250 System Corruption 2% Temperature Cool (12) Movement Rolling (115) Ox1 Location -10/Mines Parts ------- > --- POWER (1) -------- Ion Engine > --- PROPULSION (2) --- Light Treads Compact Wheel > --- UTILITY (2) ------ Medium Storage Unit > --- WEAPON (2) ------- Light Assault Rifle Light Assault Rifle > --- INVENTORY (10) --- Ion Engine Aluminum Leg Aluminum Leg Heat Sink Small Storage Unit Sensor Array Terrain Scanner Light Cannon Mining Laser Welding Torch Peak State ------------ > --- POWER ------------ Ion Engine > --- PROPULSION ------- Light Treads Compact Wheel > --- UTILITY ---------- Medium Storage Unit Improved Terrain Scanner > --- WEAPON ----------- Light Assault Rifle Light Assault Rifle > --- INVENTORY -------- Ion Engine Aluminum Leg Aluminum Leg Heat Sink Small Storage Unit Sensor Array Terrain Scanner Light Cannon Mining Laser Welding Torch [Rating: 10] Favorites ----------- Power Ion Engine Engine Ion Engine Propulsion Light Treads Treads Light Treads Wheel Compact Wheel Utility Small Storage Unit Device Improved Terrain Scanner Storage Small Storage Unit Protection Propulsion Shielding Weapon Light Assault Rifle Ballistic Gun Light Assault Rifle Build | -11 -10 -10 ------- Run | Yrd Mat Min Slots Evolved . | . . . Power . | . . . Propulsion . | . . . Utility . | . . . Weapon . | . . . Parts Attached 15 | 6 7 2 Power 2 | 1 1 . Engine 2 | 1 1 . Core . | . . . Reactor . | . . . Propulsion 4 | 2 2 . Treads 3 | 2 1 . Leg . | . . . Wheel 1 | . 1 . Hover . | . . . Flight . | . . . Utility 4 | 1 3 . Device 1 | . 1 . Storage 2 | 1 1 . Processor . | . . . Hackware . | . . . Protection 1 | . 1 . Artifact . | . . . Weapon 5 | 2 1 2 Energy Gun . | . . . Energy Cannon . | . . . Ballistic Gun 5 | 2 1 2 Ballistic Cannon . | . . . Launcher . | . . . Special Weapon . | . . . Impact Weapon . | . . . Slashing Weapon . | . . . Piercing Weapon . | . . . Special Melee Weapon . | . . . Unidentified Prototypes . | . . . Parts Lost 5 | . 4 1 Power 1 | . 1 . Propulsion 2 | . 2 . Utility 2 | . 1 1 Weapon . | . . . Highest Loss Streak 2 | . 2 1 To Critical Strikes 1 | . 1 . Average Backups 7 | 2 7 10 Power . | . 1 1 Propulsion 2 | 1 2 2 Utility 1 | . 1 4 Weapon 1 | . 1 2 Tool/Special . | . . . Unused Backups 9 | . . 9 Power 1 | . . 1 Propulsion 2 | . . 2 Utility 3 | . . 3 Weapon 2 | . . 2 Tool/Special 1 | . . 1 Average Slot Usage (%) 94 | . 94 99 Engine 11 | . 10 14 Treads 22 | . 24 14 Wheel 3 | . 1 14 Device 6 | . 5 13 Storage 14 | . 14 14 Protection 6 | . 8 . Ballistic Gun 28 | . 28 28 Peak Build Rating 10 | 6 10 10 Average Rating 7 | 5 7 9 On Entrance 5 | . 6 10 Avg Prop Armor Cover (%) 14 | . 14 14 Naked Turns . | . . . Heaviest Build 18 | 12 18 18 Greatest Support 40 | 40 40 16 Greatest Overweight (x) 1 | . 1 1 Average Overweight (x) . | . . 1 Largest Inventory Capacity 10 | 8 10 10 Average Capacity 8 | 7 8 10 Most Carried 10 | 5 10 10 Average Carried 7 | 2 7 10 Final Capacity 10 | 8 10 10 Final Carried 10 | 5 10 10 Class Distribution -------------------- 79% | Mutant 20% | Scavenger-Mutant Dominant Class ---------------- Mutant | -10/Materials Scavenger-Mutant | -10/Mines Resources | -11 -10 -10 ----------- Run | Yrd Mat Min Matter Collected 483 | 185 260 38 Remotely . | . . . Salvage Created 594 | 14 496 84 Parts 50 | 4 36 10 Haulers Intercepted 1 | . 1 . Recyclers Shooed 1 | . . 1 Parts Field Recycled . | . . . Retrieved Matter . | . . . Parts Self-Destructed . | . . . Prevented . | . . . Parts Restored . | . . . Kills | -11 -10 -10 ------- Run | Yrd Mat Min Combat Hostiles Destroyed 20 | . 16 4 Guns 20 | . 16 4 Classes Destroyed 5 | 1 4 . Builder 1 | . 1 . Tunneler 1 | 1 . . Hauler 1 | . 1 . Swarmer 12 | . 9 3 Grunt 8 | . 7 1 Best Kill Streak 3 | 1 3 3 Combat Bots Only 3 | . 3 3 Max Kills in Single Turn 1 | 1 1 1 Gunslinging . | . . . Exploded . | . . . Melee . | . . . Uniques/NPCs Destroyed . | . . . Combat | -11 -10 -10 -------- Run | Yrd Mat Min Hostile Shots Fired 135 | . 104 31 Missed 36 | . 26 10 Hits 99 | . 78 21 Projectile 99 | . 78 21 Critical Strikes 3 | . 2 1 Damage Taken 997 | . 767 230 Core 259 | . 178 81 Absorbed by Shields . | . . . Redirected to Shielding 50 | . 50 . Core Remaining (%) 100 | 100 . . Volleys Fired 90 | 3 68 19 Largest 2 | 2 2 2 Hottest 40 | 40 40 40 Shots Fired 180 | 6 136 38 Gun 180 | 6 136 38 Cannon . | . . . Launcher . | . . . Special . | . . . Kinetic 180 | 6 136 38 Thermal . | . . . Explosive . | . . . Electromagnetic . | . . . Robot Hit Streak 8 | 1 8 8 Robot Miss Streak 4 | 2 4 2 Penetration Max . | . . . Secondary Targets 2 | . 1 1 Max Gunslinging Chain 1 | . 1 1 Shots Hit Robots 113 | 3 85 25 Core Hits 48 | 2 35 11 Critical Kills . | . . . Critical Parts Destroyed . | . . . Critical Strikes . | . . . Melee Attacks . | . . . Impact . | . . . Slashing . | . . . Piercing . | . . . Sneak Attacks . | . . . Combat Hostiles . | . . . Follow-up Attacks . | . . . Damage Inflicted 930 | 35 691 204 Guns 917 | 35 691 191 Cannons . | . . . Explosions . | . . . Melee . | . . . Ramming 13 | . . 13 Kinetic 917 | 35 691 191 Thermal . | . . . Explosive . | . . . Electromagnetic . | . . . Impact . | . . . Slashing . | . . . Piercing . | . . . Highest Corruption 2 | . . 2 Average Corruption 2 | . . 2 Corruption Purged . | . . . Corruption Blocked . | . . . Effects 2 | . . 2 Energy Discharges 1 | . . 1 Data Loss (minor) 1 | . . 1 Overload Shots . | . . . Overflow Damage . | . . . Projectiles . | . . . Explosions . | . . . Melee . | . . . Knockbacks . | . . . Impact . | . . . Kinetic . | . . . Secondary . | . . . Self-Inflicted Damage 6 | . . 6 Shots . | . . . Rammed 6 | 2 . 4 Targets Rammed 6 | 2 . 4 Kicked . | . . . Crushed . | . . . Highest Temperature 43 | . 43 33 Average Temperature 12 | . 12 13 Received Heat Transfer 333 | . 231 102 Siege Activations . | . . . Martial Activations . | . . . Shielding Activations . | . . . Robots Disrupted . | . . . Combat Hostiles . | . . . Robots Corrupted . | . . . Combat Hostiles . | . . . Parts Fried . | . . . Impact Corruptions . | . . . Robots Melted . | . . . Combat Hostiles . | . . . Parts Melted . | . . . Heat Transferred . | . . . Parts Sabotaged . | . . . Parts Stolen . | . . . Parts Stripped . | . . . Power Chain Reactions . | . . . Alert | -11 -10 -10 ------- Run | Yrd Mat Min Maximum Alert Level . | . . . Low Security (%) 100 | 100 100 100 Level 1 . | . . . Level 2 . | . . . Level 3 . | . . . Level 4 . | . . . Level 5 . | . . . High Security . | . . . Max Security . | . . . Peak Influence 119 | 5 119 70 Initial 15 | . . 15 Average 45 | . 52 24 Influence Increases 578 | 5 473 100 Destroy 0b10 Robot/C 400 | . 320 80 Destroy 0b10 Robot/NC 15 | 5 10 . Destroy Leader 92 | . 72 20 Successful Hack 26 | . 26 . Partial Spotted 15 | . 15 . Lose Combat Pursuer 30 | . 30 . Influence Decreases 548 | 5 433 110 Entered New Map 25 | . . 25 Time Decay 473 | 5 393 75 Lost Part 50 | . 40 10 Squads Dispatched 3 | . 3 . Investigation 1 | . 1 . Extermination . | . . . Reinforcement 2 | . 2 . Assault . | . . . Garrison . | . . . Intercept . | . . . Searches Triggered . | . . . Construction Impeded . | . . . Haulers Reinforced . | . . . Active Scanning Responses . | . . . Cargo Convoy Interrupts . | . . . Stealth | -11 -10 -10 --------- Run | Yrd Mat Min Distress Signals 1 | . 1 . Communications Jammed . | . . . Distress Signals . | . . . Times Spotted 32 | . 27 5 Peak Tracking Total 4 | . 4 3 Tactical Retreats 2 | . 2 . Traps | -11 -10 -10 ------- Run | Yrd Mat Min Traps Triggered 1 | . 1 . Indirectly . | . . . Trap Hack Attempts . | . . . Triggered . | . . . Disarmed . | . . . Reprogrammed . | . . . Reused . | . . . Traps Extracted . | . . . Installed . | . . . Triggered . | . . . Machines | -11 -10 -10 ---------- Run | Yrd Mat Min Machines Disabled . | . . . Max in Single Turn . | . . . Machines Repaired . | . . . Machines Dismantled . | . . . Machines Sabotaged . | . . . Overloaded Fab Kills . | . . . Hacking | -11 -10 -10 --------- Run | Yrd Mat Min Machines Accessed 6 | . 6 . Terminals 6 | . 6 . Fabricators . | . . . Repair Stations . | . . . Recycling Units . | . . . Scanalyzers . | . . . Garrison Access . | . . . Total Hacks 21 | . 21 . Successful 13 | . 13 . Failed 8 | . 8 . Catastrophic . | . . . Database Lockouts . | . . . Manual 17 | . 17 . Terminals 21 | . 21 . Fabricators . | . . . Repair Stations . | . . . Recycling Units . | . . . Scanalyzers . | . . . Garrison Access . | . . . Terminal Hacks 3 | . 3 . Robot Analysis 2 | . 2 . Terminal Index 1 | . 1 . Fabricator Hacks . | . . . Repair Station Hacks . | . . . Recycling Unit Hacks . | . . . Scanalyzer . | . . . Garrison Access Hacks . | . . . Unauthorized Hacks 9 | . 9 . Terminals 9 | . 9 . Track 1 | . 1 . Assimilate 1 | . 1 . Botnet 1 | . 1 . Operators 1 | . 1 . Skim 5 | . 5 . Fabricators . | . . . Repair Stations . | . . . Recycling Units . | . . . Scanalyzers . | . . . Garrison Access . | . . . Data Cores Recovered . | . . . Used . | . . . Hacking Detections 6 | . 6 . Full Trace Events . | . . . Feedback Events . | . . . Feedback Blocked . | . . . Robot Schematics Acquired . | . . . Robots Built . | . . . Authchips . | . . . Time . | . . . Total Robot Build Rating . | . . . Part Schematics Acquired . | . . . Parts Built . | . . . Authchips . | . . . Time . | . . . Total Part Build Rating . | . . . Part Studies Acquired . | . . . Parts Repaired . | . . . Time . | . . . Parts Recycled . | . . . Recycled Matter . | . . . Retrieved Matter . | . . . Retrieved Components . | . . . Parts Scanalyzed . | . . . Part Schematics Acquired . | . . . Parts Damaged . | . . . Bothacking | -11 -10 -10 ------------ Run | Yrd Mat Min Used RIF Installer . | . . . Robots Hacked . | . . . Non-combat . | . . . Combat . | . . . Robot Hacks Applied . | . . . Relay Couplers Released . | . . . Fabnet Peak Effective % . | . . . Robots Rewired . | . . . Allies Hacked . | . . . Hacks Repelled . | . . . Allies | -11 -10 -10 -------- Run | Yrd Mat Min Total Allies . | . . . Largest Group . | . . . Highest-Rated Group . | . . . Highest-Rated Ally . | . . . Total Orders . | . . . Ally Attacks . | . . . Total Damage . | . . . Kills . | . . . Allies Corrupted . | . . . Allies Melted . | . . . Intel | -11 -10 -10 ------- Run | Yrd Mat Min Active Infowar (turns) 729 | . 531 198 Terrain 729 | . 531 198 Robot Analysis Total 2 | . 2 . Derelict Logs Recovered . | . . . Drone Launches . | . . . Drone Recoveries . | . . . Exploration | -11 -10 -10 ------------- Run | Yrd Mat Min Turns Passed 1607 | 97 1298 212 Spaces Moved 762 | 50 577 135 Core 6 | 6 . . Treads 544 | 44 500 . Legs . | . . . Wheels 212 | . 77 135 Hover . | . . . Flight . | . . . Fastest Speed 50 | 50 100 115 Average Speed 146 | 146 153 115 Slowest Speed 160 | 160 160 115 Overloaded Moves . | . . . Propulsion Burnouts . | . . . Robots Hopped . | . . . Potential Cave-ins . | . . . Cave-ins Triggered . | . . . Exploration Rate (%) 44 | 5 85 43 Regions Visited 2 Branch Regions 1 Pre-discovered Areas 2 | . 2 . Known Exits Taken . | . . . Unknown Exits Taken 2 | 1 1 . Scrap Searched 1 | . . 1 Spaces Dug . | . . . Terrain Destroyed . | . . . Melee . | . . . Projectile . | . . . AOE . | . . . Terrain Rammed . | . . . Walls Destroyed . | . . . Machines Disabled . | . . . Actions | -11 -10 -10 --------- Run | Yrd Mat Min Total 1109 | 65 881 163 Wait 223 | . 222 1 Move 760 | 49 576 135 Hop . | . . . Pick Up 12 | 5 7 . Fast Attach 8 | 6 2 . Attach 3 | . 3 . Detach . | . . . Swap 4 | . 2 2 Drop 3 | . 1 2 Fire 90 | 3 68 19 Melee . | . . . Ram 4 | . . 4 Kick . | . . . Crush 2 | 2 . . Escape Stasis . | . . . Rewire . | . . . Trap . | . . . Miscellaneous . | . . . Route ------- -11/Scrapyard -10/Materials (discovered 3 exits: *Mat x2 / [*Min]) -10/Mines (discovered 2 exits: Mat / Sub) History --------- Turn | Location | Event 17 | -11/Scrapyard | Discovered new exit (range 15) 98 | -11/Scrapyard | Entered Materials 311 | -10/Materials | Build established: Mutant 377 | -10/Materials | Discovered new exit (range 3) 685 | -10/Materials | Core integrity fell below 50% 1195 | -10/Materials | Discovered new exit (range 6) 1272 | -10/Materials | Learned location of 2 exits from Mines 1301 | -10/Materials | Learned 4 Recycling zone layouts 1312 | -10/Materials | Discovered new exit (range 6) 1320 | -10/Materials | Learned location of 1 exit from Recycling 1331 | -10/Materials | Learned location of 1 exit from Recycling 1333 | -10/Materials | Learned 2 Storage zone layouts 1371 | -10/Materials | Learned location of Mines (-9) 1396 | -10/Materials | Entered Mines 1397 | -10/Mines | Identified exit to Materials 1397 | -10/Mines | Identified exit to Subcaves 1582 | -10/Mines | Build established: Scavenger-Mutant 1588 | -10/Mines | Core integrity fell below 20% 1608 | -10/Mines | Destroyed by G-34 Mercenary with Small Laser Last Messages --------------- 01521_ K-01 Serf collects debris. 01523_ Slammed into K-01 Serf. 01523_ Destabilizing: System corrupted (+2). 01526_ K-01 Serf collects debris. 01530_ R-06 Scavenger collects Flight Unit. 01530_ Slammed into R-06 Scavenger. 01530_ K-01 Serf collects debris. 01533_ Slammed into R-06 Scavenger. 01534_ R-06 Scavenger collects Lgt. Assault Rifle. 01534_ K-01 Serf collects debris. 01534_ Slammed into R-06 Scavenger. 01536_ System corrupted: Energy discharge (-65). 01539_ K-01 Serf collects debris. 01587_ Critical hit (Burn: +37). 01594_ Imp. Terrain Scanner destroyed. 01599_ G-47 Trooper destroyed. 01599_ Switching to secondary target: G-34 Mercenary. 01600_ System corrupted: Component data lost. Map ----- +----------------------------------------------------+ | ???????????# #???#??? ??#??????####??? | | ????????#???# #?????????#??????## #### | | ????????????# ##?###????????#### # | | ???????? ???## ## ##?#????## | | ?????????????## #?????## | | ??????????????## ##???## """ | | ???????????????## =[ ##?#?## """ # | | ????????????????###=*####???## """ ## | | ????????????#?????# ######### ##? | | ??? ??????????????#[ #?? | | ?????????? ?#?????#* % % % ##?? | | ????? ? ??????????##############% ##??? | | ??????? ??????????????????????### ##?#?? | | ??????????????#???????????????#?# ##???# | | ?????? ??????????????#???##???#?## ##???# | | ?????????? ???????????#????####### #????# | | ?????????? ????##?????#???## ##??### | | ????????? ????#???????#???# #??#??# | | ?????????? ???#?#?????????## ###### #? | | ?????????? ???#???##??#??## ##???? ##### #? | | ?????????? ??????????????# ##???##??????? | | ????????## ???????#???#?# #???????????? | | ???????## ????#????###### #???????????? | | ???????# ????????## ## #????#??????? | | ??????## #????##### #???????????? | | ?????## ##??## @ ##?#?????????? | | ?????# #??# #???#????????? | | ??#??# #?## #????????????? | | ?????# ###%! ## #???????????? | | ?????# == #### #??????????? | | ?????# g ##?## ##??#??????? | | ?????## #??## #?????????? | | ??????## #????# #????????? | | ???????# #?????# #????????? | | #??????# ##?????? ##????????? | | ???????# ##???????# #?????????? | | ???????# ### ##????????? ?????????? | | ???????## ##?#####??#??????? ?????????? | | ????????## #?????????????????????????????? | | ?????????# #?????????????????????????????? | | ?????????#####????#??????#?#???????????????? | | ???????????????????????????????????????????? | | ??????????????#??????????#?????????????????? | | | | | | | | | | | | | | | +----------------------------------------------------+ Best States ------------- Heat Dissipation 25 Energy Generation 10 Energy Capacity 250 Matter Stores 300 Matter Capacity 300 Sight Range 16 Terrain Scan Range 16 Terrain Scan Density 10 Propulsion Shielding 33 Evasion (%) 40 Recoil Reduction 2 Item Schematics ----------------- None Robot Schematics ------------------ None Fabricated ------------ Nothing Repaired ---------- Nothing Studied --------- None Alien Tech Used ----------------- None Achievements -------------- None Challenges ------------ None Game ------ Seed LayeredScanFlightbrick Manual? 0 Play Time 00:13:18 Cumulative 126.6 hours Start 2025.11.10 @ 16:24:44 End 2025.11.10 @ 16:59:38 Sessions 1 Manual Loads 0 Difficulty Rogue Special Mode None Game No. 321 Rogue 319 Adventurer 2 Explorer 0 Win Type - Total 1 Types 1/0/0/0/0/0/0/0/0/0 Lore% 80 Gallery% 62 Achievement% 40 Wizard Run 0 Options --------- Layout 2 ASCII 0 Keyboard 0 Movement Numpad Keybinds 0 Fullscreen 2 Font 24/Smallcaps Map View 50x44 Zoom Use 0% Tactical HUD 1 Map Filters NONE Filters NONE Steam 1 RUN: 74c9e003-9f9d-4806-b527-7abc9eb2b315